Workbook

Sheet паспорт
A1: ПАТ "УКРТРАНСГАЗ" | G1: ПАСПОРТ ФІЗИКО-ХІМІЧНИХ ПОКАЗНИКІВ ПРИРОДНОГО ГАЗУ № 25
A2: Філія "УМГ "КИЇВТРАНСГАЗ" | G2: переданого Боярським ЛВУМГ та прийнятого ПАТ "Київоблгаз"
A3: Боярське ЛВУМГ | G3: Маршрут №25
A4: Вимірювальна хіміко-аналітична лабораторія
A5: Свідоцтво № 70А-43-14 чинно до 23.07.2019 р. | K5: по газопроводу "ХОТІВ - БОЯРКА" (ЄКК) | V5: за період з | X5: 2017-02-01 | Z5: по | AA5: 2017-02-28
A7: Число місяця | B7: Компонентний склад, % мол. | N7: Фізико-хімічні показники газу обчислені на основі компонентного складу, 101,325 кПа | X7: Температура точки роси за вологою (Р = 3.92 МПа), ºС | Y7: Температура точки роси за вуглеводнями, ºС | Z7: Вміст сірководню, г/м3 | AA7: Вміст меркаптанової сірки, г/м3 | AB7: Вміст механічних домішок, г/м3
N8: Густина абсолютна, кг/м3,при 20 ºС, | O8: Температура вимірювання/згоряння при 20/25°С
B9: метан, С1 | C9: етан, С2 | D9: пропан, С3 | E9: ізо-бутан, і-С4 | F9: н-бутан, н-С4 | G9: нео-пентан, нео-С5 | H9: ізо-пентан, і-С5 | I9: н-пентан, н-С5 | J9: гексани та вищі, С6+ | K9: кисень, О2 | L9: азот, N2 | M9: діоксид вуглецю, CО2 | O9: Теплота згоряння нижча | R9: Теплота згоряння вища | U9: Число Воббе вище
O10: ккал/м3 | P10: МДж/м3 | Q10: кВт⋅год/м3 | R10: ккал/м3 | S10: МДж/м3 | T10: кВт⋅год/м3 | U10: ккал/м3 | V10: МДж/м3 | W10: кВт⋅год/м3
A11: 1 | O11: =P11*238.8459 -> 8211.522042 | P11: 34.38 | Q11: =P11/3.6 -> 9.55 | R11: =S11*238.8459 -> 9097.640331 | S11: 38.09 | T11: =S11/3.6 -> 10.58055556 | AC11: =SUM(B11:M11)+$K$39+$N$39 -> 0
A12: 2 | O12: =P12*238.8459 -> 8211.522042 | P12: 34.38 | Q12: 9.55 | R12: =S12*238.8459 -> 9097.640331 | S12: 38.09 | T12: 10.58055556 | AC12: 0
A13: 3 | O13: 8211.522042 | P13: 34.38 | Q13: 9.55 | R13: 9097.640331 | S13: 38.09 | T13: 10.58055556 | AC13: 0 | AD13: =IF(AC13=100,"ОК"," ") -> 
A14: 4 | O14: 8211.522042 | P14: 34.38 | Q14: 9.55 | R14: 9097.640331 | S14: 38.09 | T14: 10.58055556 | AC14: 0 | AD14: =IF(AC14=100,"ОК"," ") -> 
A15: 5 | O15: 8211.522042 | P15: 34.38 | Q15: 9.55 | R15: 9097.640331 | S15: 38.09 | T15: 10.58055556 | AC15: 0
A16: 6 | O16: 8211.522042 | P16: 34.38 | Q16: 9.55 | R16: 9097.640331 | S16: 38.09 | T16: 10.58055556 | AC16: 0
A17: 7 | B17: 91.9423 | C17: 3.9286 | D17: 0.886 | E17: 0.107 | F17: 0.1461 | G17: 0.0032 | H17: 0.0369 | I17: 0.0295 | J17: 0.0575 | K17: 0.0063 | L17: 1.3002 | M17: 1.5565 | N17: 0.7341 | O17: 8194.802829 | P17: 34.31 | Q17: 9.530555556 | R17: 9078.532659 | S17: 38.01 | T17: 10.55833333 | U17: =V17*238.8459 -> 11629.40687 | V17: 48.69 | W17: =V17/3.6 -> 13.525 | AC17: 100.0001
A18: 8 | O18: 8194.802829 | P18: 34.31 | Q18: 9.530555556 | R18: 9078.532659 | S18: 38.01 | T18: 10.55833333 | AC18: 0
A19: 9 | O19: 8194.802829 | P19: 34.31 | Q19: 9.530555556 | R19: 9078.532659 | S19: 38.01 | T19: 10.55833333 | AC19: 0
A20: 10 | O20: 8194.802829 | P20: 34.31 | Q20: 9.530555556 | R20: 9078.532659 | S20: 38.01 | T20: 10.55833333 | AC20: 0
A21: 11 | O21: 8194.802829 | P21: 34.31 | Q21: 9.530555556 | R21: 9078.532659 | S21: 38.01 | T21: 10.55833333 | AC21: 0
A22: 12 | O22: 8194.802829 | P22: 34.31 | Q22: 9.530555556 | R22: 9078.532659 | S22: 38.01 | T22: 10.55833333 | AC22: 0
A23: 13 | B23: 91.7277 | C23: 4.0281 | D23: 0.9124 | E23: 0.1099 | F23: 0.1488 | G23: 0.0031 | H23: 0.0372 | I23: 0.031 | J23: 0.0573 | K23: 0.0073 | L23: 1.4042 | M23: 1.533 | N23: 0.7354 | O23: 8197.191288 | P23: 34.32 | Q23: 9.533333333 | R23: 9083.309577 | S23: 38.03 | T23: 10.56388889 | U23: =V23*238.8459 -> 11624.62995 | V23: 48.67 | W23: =V23/3.6 -> 13.51944444 | X23: -16.5 | Y23: -15.9 | AC23: 100 | AD23: ОК
A24: 14 | O24: 8197.191288 | P24: 34.32 | Q24: 9.533333333 | R24: 9083.309577 | S24: 38.03 | T24: 10.56388889 | AC24: 0
A25: 15 | O25: 8197.191288 | P25: 34.32 | Q25: 9.533333333 | R25: 9083.309577 | S25: 38.03 | T25: 10.56388889 | AC25: 0
A26: 16 | O26: 8197.191288 | P26: 34.32 | Q26: 9.533333333 | R26: 9083.309577 | S26: 38.03 | T26: 10.56388889 | AC26: 0
A27: 17 | O27: 8197.191288 | P27: 34.32 | Q27: 9.533333333 | R27: 9083.309577 | S27: 38.03 | T27: 10.56388889 | AC27: 0
A28: 18 | O28: 8197.191288 | P28: 34.32 | Q28: 9.533333333 | R28: 9083.309577 | S28: 38.03 | T28: 10.56388889 | AC28: 0
A29: 19 | O29: 8197.191288 | P29: 34.32 | Q29: 9.533333333 | R29: 9083.309577 | S29: 38.03 | T29: 10.56388889 | AC29: 0
A30: 20 | B30: 90.2874 | C30: 4.616 | D30: 0.9664 | E30: 0.1051 | F30: 0.158 | G30: 0.0036 | H30: 0.0422 | I30: 0.0348 | J30: 0.0613 | K30: 0.0093 | L30: 1.6547 | M30: 2.0613 | N30: 0.7473 | O30: 8182.860534 | P30: 34.26 | Q30: 9.516666667 | R30: 9066.590364 | S30: 37.96 | T30: 10.54444444 | U30: =V30*238.8459 -> 11509.98392 | V30: 48.19 | W30: =V30/3.6 -> 13.38611111 | AC30: 100.0001 | AD30: =IF(AC30=100,"ОК"," ") -> 
A31: 21 | O31: =P31*238.8459 -> 8182.860534 | P31: 34.26 | Q31: =P31/3.6 -> 9.516666667 | R31: =S31*238.8459 -> 9066.590364 | S31: 37.96 | T31: =S31/3.6 -> 10.54444444 | AC31: 0
A32: 22 | O32: 8182.860534 | P32: 34.26 | Q32: 9.516666667 | R32: 9066.590364 | S32: 37.96 | T32: 10.54444444 | AC32: 0
A33: 23 | O33: 8182.860534 | P33: 34.26 | Q33: =P33/3.6 -> 9.516666667 | R33: 9066.590364 | S33: 37.96 | T33: =S33/3.6 -> 10.54444444 | AC33: 0 | AD33: =IF(AC33=100,"ОК"," ") -> 
A34: 24 | O34: 8182.860534 | P34: 34.26 | Q34: 9.516666667 | R34: 9066.590364 | S34: 37.96 | T34: 10.54444444 | AC34: 0
A35: 25 | O35: 8182.860534 | P35: 34.26 | Q35: 9.516666667 | R35: 9066.590364 | S35: 37.96 | T35: 10.54444444 | AC35: 0
A36: 26 | O36: 8182.860534 | P36: 34.26 | Q36: 9.516666667 | R36: 9066.590364 | S36: 37.96 | T36: =S36/3.6 -> 10.54444444 | AC36: 0
A37: 27 | B37: 90.0094 | C37: 4.7918 | D37: 1.0026 | E37: 0.1081 | F37: 0.1639 | G37: 0.004 | H37: 0.0436 | I37: 0.0363 | J37: 0.0651 | K37: 0.0071 | L37: 1.6702 | M37: 2.0979 | N37: 0.7496 | O37: 8199.579747 | P37: 34.33 | Q37: 9.536111111 | R37: 9083.309577 | S37: 38.03 | T37: 10.56388889 | U37: =V37*238.8459 -> 11512.37238 | V37: 48.2 | W37: =V37/3.6 -> 13.38888889 | Z37: 0.006 | AA37: 0.02 | AB37: відсут | AC37: 100 | AD37: ОК
A38: 28 | O38: 8199.579747 | P38: 34.33 | Q38: 9.536111111 | R38: 9083.309577 | S38: 38.03 | T38: 10.56388889 | AC38: 0
A39: Рівень одоризації відповідає чинним нормативним документам | O39: 8197 | P39: 34.32 | Q39: 9.53 | R39: 9082 | S39: 38.02 | T39: 10.56
H40: Середньозважене значення теплоти згоряння:
B43: Головний інженер Боярського ЛВУМГ Табак С.М. 01.03.2017 р.
C44: Підрозділу підприємства, якому підпорядкована лабораторія | O44: прізвище | R44: підпис | V44: дата
B45: Завідувач вимірювальної хіміко-аналітичної лабораторії Клименко І.А. 01.03.2017 р.
C46: Лабораторія, де здійснювалось вимірювання газу | O46: прізвище | R46: підпис | V46: дата
B47: Начальник служби газовимірювань та метрології Прима Ю.І. 01.03.2017 р.
C48: Підрозділу, відповідального за облік газу за маршрутом | O48: прізвище | R48: підпис | V48: дата

Sheet додаток
A2: Додаток до Паспорту фізико-хімічних показників природного газу №25
A4: Область | B4: ГРС, прямий споживач | C4: Cередньозважене значення вищої теплоти згоряння
C5: МДж/м³ | D5: ккал/м³ | E5: кВт*год./м³
A6: Київська область | B6: ГРС Обухів (ДРЕС) | C6: 38.02196177 | D6: 9081.389679 | E6: 10.56165605
B7: ГРС Обухів (місто) | C7: 38.02382331 | D7: 9081.8343 | E7: 10.56217314
B8: ГРС Бугаївка | C8: 38.02461604 | D8: 9082.02364 | E8: 10.56239334
B9: ГРС Козин | C9: 38.02518623 | D9: 9082.159829 | E9: 10.56255173
A10: Середньозважене значення вищої теплоти згоряння по маршруту № 25 | C10: =AVERAGE(C6:C9) -> 38.02389684 | D10: =AVERAGE(D6:D9) -> 9081.851862 | E10: 10.56219357
A14: Головний інженер Боярського ЛВУМГ Табак С.М. 01.03.2017 р.
A15: Підрозділу підприємства, якому підпорядкована лабораторія | D15: прізвище | E15: підпис | F15: дата
A16: Завідувач вимірювальної хіміко-аналітичної лабораторії Клименко І.А. 01.03.2017 р.
A17: Лабораторія, де здійснювалось вимірювання газу | D17: прізвище | E17: підпис | F17: дата
A18: Начальник служби газовимірювань та метрології Прима Ю.І. 01.03.2017 р.
A19: Підрозділу, відповідального за облік газу за маршрутом | D19: прізвище | E19: підпис | F19: дата

Sheet variablesList (hidden)
A1: 3 | B1: x:\gaysin | C1: 10, 11, 24, 25, 127, 128, 132, 180, 207, 215 | D1: x:\
B2: x:\Illinci
B3: x:\Talne
